lending/lending_fUSD_20250418
["ID","MTS","AMOUNT","RATE_DAILY","PERIOD"]
[358363551,1744996247043,-180.309131,0.00053,120]
[358363553,1744996247053,-180.309131,0.00053,120]
[358363555,1744996247063,-151.0,0.00053,120]
[358363557,1744996247072,-151.0,0.00053,120]
[358363560,1744996247082,-151.0,0.00053,120]
[358363562,1744996247092,-256.164223,0.00053,120]
[358363564,1744996247102,-256.164223,0.00053,120]
[358363566,1744996247111,-404.797649,0.00053,120]
[358363568,1744996247120,-404.797649,0.00053,120]
[358363570,1744996247130,-151.0,0.00053,120]
[358363572,1744996247139,-193.772261,0.00053,120]
[358363573,1744996247149,-161.76397,0.00053,120]
[358363575,1744996247159,-161.76397,0.00053,120]
[358363577,1744996247168,-151.0,0.00053,120]
[358363579,1744996247178,-151.0,0.00053,120]
[358363581,1744996247187,-151.0,0.00053,120]
[358363582,1744996247197,-500.0,0.00053359,7]
[358363583,1744996247206,-500.0,0.00053359,7]
[358363584,1744996247216,-500.0,0.00053359,7]
[358363585,1744996247225,-150.0,0.00053359,7]
[358363586,1744996247234,-500.0,0.00053359,7]
[358363587,1744996247244,-420.0,0.00053359,7]
[358363588,1744996247254,-500.0,0.00053359,7]
[358363589,1744996247263,-1000.0,0.00053426,10]
[358363590,1744996247273,-150.0,0.00053668,120]
[358363591,1744996247285,-162.0,0.00053668,2]
[358363592,1744996247295,-231.502,0.00053668,120]
[358363593,1744996247305,-250.0,0.00053668,120]
[358363594,1744996247315,-177.655,0.00053668,120]
[358363595,1744996247324,-215.593,0.00053668,120]
[358363596,1744996247334,-283.851,0.00053668,120]
[358363597,1744996247343,-150.0,0.00053668,120]
[358363598,1744996247353,-150.213,0.00053668,120]
[358363599,1744996247362,-2049.0,0.00053668,120]
[358363600,1744996247371,-152.0,0.00053697,120]
[358363601,1744996247380,-783.988,0.00053697,120]
[358363602,1744996247389,-2137.0,0.00053697,2]
[358363603,1744996247399,-3969.0,0.00053697,120]
[358363604,1744996247408,-157.95,0.00053903,120]
[358363605,1744996247418,-940.93,0.00054106,2]
[358363606,1744996247429,-1329.0,0.00054688,120]
[358363607,1744996247438,-1281.0,0.00054688,120]
[358363608,1744996247566,-1440.0,0.00054688,120]
[358363609,1744996247577,-907.0,0.00054688,120]
[358363610,1744996247587,-545.0,0.00054688,120]
[358363611,1744996247596,-571.02,0.00054688,120]
[358363612,1744996247606,-4152.0,0.00054688,120]
[358363613,1744996247615,-160.0,0.00054712,10]
[358363614,1744996247624,-500.0,0.00054794,120]
[358363615,1744996247633,-151.0,0.00054794,120]
[358363616,1744996247643,-151.0,0.00054794,120]
[358363617,1744996247653,-313.84800832,0.00054794,120]
[358363618,1744996247662,-505.71037448,0.00054794,120]
[358363619,1744996247671,-498.90251685,0.00054794,120]
[358363620,1744996247681,-500.0,0.00054794,120]
[358363621,1744996247690,-500.0,0.00054794,120]
[358363622,1744996247700,-500.0,0.00054794,120]
[358363623,1744996247713,-500.0,0.00054794,120]
[358363624,1744996247724,-500.0,0.00054794,120]
[358363625,1744996247733,-500.0,0.00054794,120]
[358363626,1744996247742,-530.32708127,0.00054794,120]
[358363627,1744996247752,-500.0,0.00054794,120]
[358363628,1744996247762,-512.10319355,0.00054794,120]
[358363629,1744996247771,-500.0,0.00054794,120]
[358363630,1744996247782,-500.0,0.00054794,120]
[358363631,1744996247791,-500.0,0.00054794,120]
[358363632,1744996247801,-629.99337585,0.00054794,120]
[358363633,1744996247810,-508.20255908,0.00054794,120]
[358363634,1744996247820,-500.0,0.00054794,120]
[358363635,1744996247830,-505.48637846,0.00054794,120]
[358363636,1744996247842,-500.0,0.00054794,120]
[358363637,1744996247852,-151.0,0.00054794,120]
[358363638,1744996247861,-521.83476075,0.00054794,120]
[358363639,1744996247870,-500.0,0.00054794,120]
[358363640,1744996247880,-515.68437691,0.00054794,120]
[358363641,1744996247889,-500.0,0.00054794,120]
[358363642,1744996247898,-526.18635191,0.00054794,120]
[358363643,1744996247909,-151.0,0.00054794,120]
[358363644,1744996247920,-500.0,0.00054794,120]
[358363645,1744996247930,-500.0,0.00054794,120]
[358363646,1744996247941,-515.43453958,0.00054794,120]
[358363647,1744996247951,-500.0,0.00054794,120]
[358363648,1744996247960,-500.0,0.00054794,120]
[358363649,1744996247969,-151.0,0.00054794,120]
[358363650,1744996247978,-510.63849043,0.00054794,120]
[358363651,1744996247987,-151.0,0.00054794,120]
[358363652,1744996247997,-500.0,0.00054794,120]
[358363653,1744996248007,-509.03255521,0.00054794,120]
[358363654,1744996248016,-500.00070234,0.00054794,120]
[358363655,1744996248027,-500.0,0.00054794,120]
[358363656,1744996248036,-511.60483133,0.00054794,120]
[358363657,1744996248046,-547.96884769,0.00054794,120]
[358363658,1744996248056,-521.64515425,0.00054794,120]
[358363659,1744996248067,-151.0,0.00054794,120]
[358363660,1744996248076,-334.4938371,0.00054794,120]
[358363661,1744996248086,-242.92387036,0.00054794,120]
[358363662,1744996248096,-500.0,0.00054794,120]
[358363663,1744996248106,-500.0,0.00054794,120]
[358363664,1744996248116,-500.0,0.00054794,120]
[358363665,1744996248126,-151.0,0.00054794,120]
[358363666,1744996248135,-500.0,0.00054794,120]
[358363667,1744996248145,-500.0,0.00054794,120]
[358363668,1744996248155,-357.06344992,0.00054794,120]
[358363669,1744996248164,-500.0,0.00054794,120]
[358363670,1744996248174,-500.0,0.00054794,120]
[358363671,1744996248183,-600.0,0.00054794,120]
[358363672,1744996248193,-151.0,0.00054794,120]
[358363673,1744996248203,-500.0,0.00054794,120]
[358363674,1744996248213,-333.58,0.00054794,120]
[358363675,1744996248222,-151.9705708,0.00054794,120]
[358363676,1744996248232,-500.0,0.00054794,14]
[358363677,1744996248242,-343.01327034,0.00054794,120]
[358363678,1744996248252,-500.0,0.00054794,120]
[358363679,1744996248261,-151.0,0.00054794,120]
[358363680,1744996248271,-500.0,0.00054794,120]
[358363681,1744996248284,-500.0,0.00054794,120]
[358363682,1744996248294,-156.434647,0.00054794,120]
[358363683,1744996248304,-500.0,0.00054794,120]
[358363684,1744996248313,-151.0,0.00054794,120]
[358363685,1744996248324,-500.0,0.00054794,120]
[358363686,1744996248334,-546.52947968,0.00054794,120]
[358363687,1744996248344,-500.0,0.00054794,120]
[358363688,1744996248355,-500.0,0.00054794,120]
[358363689,1744996248365,-500.0,0.00054794,120]
[358363690,1744996248374,-213.15469577,0.00054794,120]
[358363691,1744996248384,-500.0,0.00054794,120]
[358363692,1744996248393,-500.0,0.00054794,120]
[358363693,1744996248402,-500.0,0.00054794,120]
[358363694,1744996248412,-453.4838587,0.00054794,120]
[358363695,1744996248421,-500.0,0.00054794,120]
[358363696,1744996248431,-500.0,0.00054794,120]
[358363697,1744996248440,-507.014998,0.00054794,7]
[358363698,1744996248451,-203.202523,0.00054794,120]
[358363699,1744996248461,-522.03404305,0.00054794,120]
[358363700,1744996248470,-504.48381954,0.00054794,120]
[358363701,1744996248481,-500.0,0.00054794,120]
[358363702,1744996248490,-500.0,0.00054794,120]
[358363703,1744996248500,-329.484772,0.00054794,120]
[358363704,1744996248509,-494.0,0.00054794,120]
[358363705,1744996248519,-500.0,0.00054794,120]
[358363706,1744996248529,-500.0,0.00054794,120]
[358363707,1744996248539,-329.484772,0.00054794,120]
[358363708,1744996248548,-500.0,0.00054794,2]
[358363709,1744996248557,-539.80120261,0.00054794,120]
[358363710,1744996248566,-500.0,0.00054794,2]
[358363711,1744996248576,-500.0,0.00054794,120]
[358363712,1744996248585,-500.0,0.00054794,2]
[358363713,1744996248595,-500.0,0.00054794,2]
[358363714,1744996248605,-500.0,0.00054794,2]
[358363715,1744996248615,-151.0,0.00054794,120]
[358363716,1744996248625,-508.86970047,0.00054794,120]
[358363717,1744996248635,-500.0,0.00054794,120]
[358363718,1744996248645,-500.0,0.00054794,2]
[358363719,1744996248655,-500.0,0.00054794,120]
[358363720,1744996248664,-151.0,0.00054794,120]
[358363721,1744996248674,-500.0,0.00054794,120]
[358363722,1744996248683,-500.0,0.00054794,120]
[358363723,1744996248692,-500.0,0.00054794,120]
[358363724,1744996248702,-500.0,0.00054794,120]
[358363725,1744996248712,-500.0,0.00054794,120]
[358363726,1744996248721,-526.16231909,0.00054794,120]
[358363727,1744996248731,-500.0,0.00054794,120]
[358363728,1744996248740,-629.22984586,0.00054794,120]
[358363729,1744996248750,-500.0,0.00054794,120]
[358363730,1744996248759,-500.0,0.00054794,120]
[358363731,1744996248769,-519.66494476,0.00054794,120]
[358363732,1744996248778,-500.0,0.00054794,120]
[358363733,1744996248787,-500.0,0.00054794,120]
[358363734,1744996248796,-500.0,0.00054794,120]
[358363735,1744996248806,-500.0,0.00054794,120]
[358363736,1744996248815,-2000.0,0.00054794,120]
[358363737,1744996248824,-500.0,0.00054794,120]
[358363738,1744996248834,-500.0,0.00054794,120]
[358363739,1744996248843,-500.0,0.00054794,120]
[358363740,1744996248852,-500.0,0.00054794,120]
[358363741,1744996248862,-500.0,0.00054794,120]
[358363742,1744996248871,-500.0,0.00054794,120]
[358363743,1744996248881,-200.43903051,0.00054794,120]
[358363744,1744996248890,-510.08178245,0.00054794,120]
[358363745,1744996248900,-500.0,0.00054794,120]
[358363746,1744996248909,-500.56856696,0.00054794,120]
[358363747,1744996248919,-340.64766522,0.00054794,120]
[358363748,1744996248928,-500.0,0.00054794,120]
[358363749,1744996248937,-562.22107247,0.00054794,120]
[358363750,1744996248947,-500.0,0.00054794,120]
[358363751,1744996248956,-520.54247724,0.00054794,120]
[358363752,1744996248965,-500.0,0.00054794,120]
[358363753,1744996248975,-500.0,0.00054794,120]
[358363754,1744996248984,-500.0,0.00054794,120]
[358363755,1744996248994,-527.32310354,0.00054794,120]
[358363756,1744996249003,-500.0,0.00054794,120]
[358363757,1744996249012,-500.0,0.00054794,120]
[358363758,1744996249022,-500.0,0.00054794,120]
[358363759,1744996249032,-541.25,0.00054794,120]
[358363760,1744996249042,-500.0,0.00054794,120]
[358363761,1744996249052,-500.0,0.00054794,120]
[358363762,1744996249062,-500.0,0.00054794,120]
[358363763,1744996249073,-500.0,0.00054794,120]
[358363764,1744996249083,-500.0,0.00054794,120]
[358363765,1744996249093,-500.0,0.00054794,120]
[358363766,1744996249104,-500.0,0.00054794,120]
[358363767,1744996249114,-500.0,0.00054794,120]
[358363768,1744996249123,-500.0,0.00054794,120]
[358363769,1744996249133,-500.0,0.00054794,30]
[358363770,1744996249143,-500.0,0.00054794,120]
[358363771,1744996249153,-516.68722181,0.00054794,120]
[358363772,1744996249164,-500.0,0.00054794,120]
[358363773,1744996249174,-523.10856991,0.00054794,120]
[358363774,1744996249185,-576.1,0.00054794,120]
[358363775,1744996249195,-602.39287242,0.00054794,120]
[358363776,1744996249205,-500.0,0.00054794,120]
[358363777,1744996249215,-500.0,0.00054794,120]
[358363778,1744996249225,-616.82,0.00054794,120]
[358363779,1744996249235,-500.0,0.00054794,120]
[358363780,1744996249245,-597.75439246,0.00054794,120]
[358363781,1744996249255,-583.37789881,0.00054794,120]
[358363782,1744996249265,-513.07947964,0.00054794,120]
[358363783,1744996249275,-500.0,0.00054794,120]
[358363784,1744996249287,-151.0,0.00054794,120]
[358363785,1744996249297,-500.0,0.00054794,120]
[358363786,1744996249307,-500.0,0.00054794,120]
[358363787,1744996249317,-500.0,0.00054794,120]
[358363788,1744996249327,-516.12381316,0.00054794,120]
[358363789,1744996249336,-500.0,0.00054794,120]
[358363790,1744996249345,-553.56112695,0.00054794,120]
[358363791,1744996249355,-328.28643953,0.00054794,120]
[358363792,1744996249365,-500.0,0.00054794,120]
[358363793,1744996249375,-151.0,0.00054794,120]
[358363794,1744996249385,-151.0,0.00054794,120]
[358363795,1744996249395,-523.5204808,0.00054794,120]
[358363796,1744996249405,-500.0,0.00054794,120]
[358363797,1744996249414,-500.0,0.00054794,120]
[358363798,1744996249424,-507.50914787,0.00054794,120]
[358363799,1744996249433,-500.0,0.00054794,120]
[358363800,1744996249443,-512.7036099,0.00054794,120]
[358363801,1744996249452,-507.43905941,0.00054794,120]
[358363802,1744996249462,-5219.14,0.00054794,120]
[358363803,1744996249471,-517.04748036,0.00054794,120]
[358363804,1744996249481,-500.0,0.00054794,120]
[358363805,1744996249490,-500.0,0.00054794,120]
[358363806,1744996249500,-500.0,0.00054794,120]
[358363807,1744996249509,-500.0,0.00054794,120]
[358363808,1744996249519,-500.0,0.00054794,120]
[358363809,1744996249529,-300.02603899,0.00054794,120]
[358363810,1744996249539,-500.0,0.00054794,7]
[358363811,1744996249549,-500.0,0.00054794,120]
[358363812,1744996249559,-500.0,0.00054794,120]
[358363813,1744996249569,-562.25484715,0.00054794,120]
[358363814,1744996249579,-500.0,0.00054794,120]
[358363815,1744996249589,-500.0,0.00054794,120]
[358363816,1744996249599,-500.0,0.00054794,120]
[358363817,1744996249608,-500.0,0.00054794,120]
[358363818,1744996249617,-536.75,0.00054794,120]
[358363819,1744996249627,-500.0,0.00054794,120]
[358363820,1744996249636,-367.28302841,0.00054794,120]
[358363821,1744996249646,-509.51574304,0.00054794,120]
[358363822,1744996249656,-500.0,0.00054794,120]
[358363823,1744996249665,-500.0,0.00054794,120]
[358363824,1744996249675,-250.0,0.00054794,120]
[358363825,1744996249685,-500.0,0.00054794,120]
[358363826,1744996249695,-1255.97,0.00054794,120]
[358363827,1744996249704,-527.66552448,0.00054794,120]
[358363828,1744996249714,-500.0,0.00054794,120]
[358363829,1744996249724,-500.0,0.00054794,120]
[358363830,1744996249734,-1000.0,0.00054794,120]
[358363831,1744996249744,-500.0,0.00054794,120]
[358363832,1744996249754,-500.0,0.00054794,120]
[358363833,1744996249763,-500.0,0.00054794,120]
[358363834,1744996249773,-500.0,0.00054794,120]
[358363835,1744996249782,-522.83820484,0.00054794,120]
[358363836,1744996249791,-500.0,0.00054794,120]
[358363837,1744996249801,-151.0,0.00054794,120]
[358363838,1744996249810,-260.840964,0.00054794,120]
[358363839,1744996249819,-1216.79,0.00054794,120]
[358363840,1744996249828,-500.0,0.00054794,120]
[358363841,1744996249838,-505.30124377,0.00054794,120]
[358363842,1744996249847,-500.0,0.00054794,120]
[358363843,1744996249856,-560.31999608,0.00054794,120]
[358363844,1744996249865,-500.0,0.00054794,120]
[358363845,1744996249874,-500.0,0.00054794,120]
[358363846,1744996249884,-500.0,0.00054794,120]
[358363847,1744996249893,-500.0,0.00054794,120]
[358363848,1744996249903,-500.0,0.00054794,120]
[358363849,1744996249912,-514.30053028,0.00054794,120]
[358363850,1744996249921,-685.42,0.00054794,120]
[358363851,1744996249931,-519.566646,0.00054794,120]
[358363852,1744996249940,-500.0,0.00054794,120]
[358363853,1744996249949,-500.0,0.00054794,120]
[358363854,1744996249958,-500.0,0.00054794,120]
[358363855,1744996249968,-500.0,0.00054794,120]
[358363856,1744996249978,-562.61,0.00054794,30]
[358363857,1744996249988,-500.0,0.00054794,120]
[358363858,1744996249998,-500.0,0.00054794,120]
[358363859,1744996250007,-500.0,0.00054794,120]
[358363860,1744996250016,-500.81646089,0.00054794,30]
[358363861,1744996250026,-500.0,0.00054794,120]
[358363862,1744996250035,-500.0,0.00054794,120]
[358363863,1744996250044,-500.0,0.00054794,120]
[358363864,1744996250053,-500.0,0.00054794,120]
[358363865,1744996250062,-500.0,0.00054794,120]
[358363866,1744996250071,-500.0,0.00054794,120]
[358363867,1744996250081,-500.0,0.00054794,120]
[358363868,1744996250090,-1098.69,0.00054794,120]
[358363869,1744996250206,-500.0,0.00054794,120]
[358363870,1744996250217,-500.0,0.00054794,120]
[358363871,1744996250226,-500.0,0.00054794,120]
[358363872,1744996250235,-520.17431343,0.00054794,120]
[358363873,1744996250245,-500.0,0.00054794,120]
[358363874,1744996250255,-500.0,0.00054794,120]
[358363875,1744996250264,-500.0,0.00054794,120]
[358363876,1744996250275,-500.0,0.00054794,120]
[358363877,1744996250287,-500.0,0.00054794,120]
[358363878,1744996250297,-500.0,0.00054794,120]
[358363879,1744996250306,-500.0,0.00054794,120]
[358363880,1744996250315,-500.0,0.00054794,120]
[358363881,1744996250326,-500.0,0.00054794,120]
[358363882,1744996250336,-500.0,0.00054794,120]
[358363883,1744996250346,-615.49820839,0.00054794,120]
[358363884,1744996250357,-2000.0,0.00054794,120]
[358363885,1744996250366,-500.0,0.00054794,120]
[358363886,1744996250376,-500.0,0.00054794,120]
[358363887,1744996250385,-500.0,0.00054794,120]
[358363888,1744996250395,-500.0,0.00054794,2]
[358363889,1744996250404,-500.0,0.00054794,2]
[358363890,1744996250414,-500.0,0.00054794,2]
[358363891,1744996250423,-500.0,0.00054794,2]
[358363892,1744996250432,-500.0,0.00054794,120]
[358363893,1744996250442,-500.0,0.00054794,2]
[358363894,1744996250451,-500.0,0.00054794,2]
[358363895,1744996250461,-572.62641146,0.00054794,2]
[358363896,1744996250470,-167.963257,0.00054794,120]
[358363897,1744996250479,-656.35,0.00054794,120]
[358363898,1744996250488,-500.0,0.00054794,120]
[358363899,1744996250498,-500.0,0.00054794,120]
[358363900,1744996250507,-500.0,0.00054794,120]
[358363901,1744996250516,-500.0,0.00054794,120]
[358363902,1744996250525,-500.0,0.00054794,120]
[358363903,1744996250535,-500.0,0.00054794,120]
[358363904,1744996250544,-500.0,0.00054794,120]
[358363905,1744996250553,-500.0,0.00054794,120]
[358363906,1744996250562,-513.23789708,0.00054794,120]
[358363907,1744996250571,-500.0,0.00054794,120]
[358363908,1744996250581,-500.0,0.00054794,120]
[358363909,1744996250590,-500.0,0.00054794,120]
[358363910,1744996250599,-500.0,0.00054794,120]
[358363911,1744996250609,-500.0,0.00054794,120]
[358363912,1744996250618,-500.0,0.00054794,120]
[358363913,1744996250628,-500.0,0.00054794,120]
[358363914,1744996250638,-500.0,0.00054794,120]
[358363915,1744996250647,-206.38802753,0.00054794,120]
[358363916,1744996250658,-500.0,0.00054794,120]
[358363917,1744996250667,-500.0,0.00054794,120]
[358363918,1744996250677,-500.0,0.00054794,120]
[358363919,1744996250687,-507.70484941,0.00054794,120]
[358363920,1744996250696,-511.96421143,0.00054794,120]
[358363921,1744996250705,-500.0,0.00054794,15]
[358363922,1744996250715,-500.0,0.00054794,15]
[358363923,1744996250725,-500.0,0.00054794,15]
[358363924,1744996250735,-500.0,0.00054794,15]
[358363925,1744996250744,-500.0,0.00054794,15]
[358363926,1744996250754,-500.0,0.00054794,15]
[358363927,1744996250763,-500.0,0.00054794,15]
[358363928,1744996250772,-500.0,0.00054794,15]
[358363929,1744996250781,-211.07254723,0.00054794,15]
[358363930,1744996250791,-500.0,0.00054794,120]
[358363931,1744996250800,-508.41964883,0.00054794,120]
[358363932,1744996250809,-510.77000104,0.00054794,120]
[358363933,1744996250818,-498.90559602,0.00054794,120]
[358363934,1744996250827,-580.97251579,0.00054794,120]
[358363935,1744996250836,-500.0,0.00054794,120]
[358363936,1744996250846,-500.0,0.00054794,120]
[358363937,1744996250855,-625.93,0.00054794,120]
[358363938,1744996250865,-500.0,0.00054794,120]
[358363939,1744996250874,-505.1499953,0.00054794,120]
[358363940,1744996250884,-500.0,0.00054794,120]
[358363941,1744996250893,-500.0,0.00054794,120]
[358363942,1744996250903,-500.0,0.00054794,120]
[358363943,1744996250912,-508.24324225,0.00054794,120]
[358363944,1744996250922,-500.0,0.00054794,120]
[358363945,1744996250931,-500.0,0.00054794,120]
[358363946,1744996250941,-500.0,0.00054794,120]
[358363947,1744996250950,-500.0,0.00054794,120]
[358363948,1744996250959,-500.0,0.00054794,120]
[358363949,1744996250968,-500.0,0.00054794,120]
[358363950,1744996250978,-500.0,0.00054794,120]
[358363951,1744996250987,-500.0,0.00054794,120]
[358363952,1744996250996,-500.0,0.00054794,120]
[358363953,1744996251005,-500.0,0.00054794,120]
[358363954,1744996251014,-500.0,0.00054794,120]
[358363955,1744996251023,-290.77970018,0.00054794,120]
[358363956,1744996251033,-500.0,0.00054794,120]
[358363957,1744996251043,-500.0,0.00054794,120]
[358363958,1744996251052,-151.0,0.00054794,120]
[358363959,1744996251062,-151.0,0.00054794,120]
[358363960,1744996251071,-282.810789,0.00054794,120]
[358363961,1744996251080,-282.810789,0.00054794,120]
[358363962,1744996251090,-500.0,0.00054794,2]
[358363963,1744996251099,-515.19281424,0.00054794,120]
[358363964,1744996251108,-513.87587212,0.00054794,120]
[358363965,1744996251117,-500.0,0.00054794,120]
[358363966,1744996251126,-151.0,0.00054794,120]
[358363967,1744996251136,-151.0,0.00054794,120]
[358363968,1744996251146,-282.810789,0.00054794,120]
[358363969,1744996251155,-282.810789,0.00054794,120]
[358363970,1744996251165,-500.0,0.00054794,120]
[358363971,1744996251174,-500.0,0.00054794,120]
[358363972,1744996251184,-506.49464763,0.00054794,120]
[358363973,1744996251193,-231.89751363,0.00054794,120]
[358363974,1744996251203,-500.0,0.00054794,120]
[358363975,1744996251212,-500.0,0.00054794,120]
[358363976,1744996251221,-520.45751083,0.00054794,120]
[358363977,1744996251230,-500.0,0.00054794,120]
[358363978,1744996251239,-500.0,0.00054794,120]
[358363979,1744996251248,-500.0,0.00054794,120]
[358363980,1744996251258,-500.0,0.00054794,120]
[358363981,1744996251267,-500.0,0.00054794,120]
[358363982,1744996251276,-356.92511866,0.00054794,120]
[358363983,1744996251285,-500.0,0.00054794,120]
[358363984,1744996251296,-587.08121806,0.00054794,120]
[358363985,1744996251309,-500.0,0.00054794,120]
[358363986,1744996251318,-500.0,0.00054794,120]
[358363987,1744996251327,-517.61996279,0.00054794,120]
[358363988,1744996251338,-527.83468522,0.00054794,120]
[358363989,1744996251347,-508.82221654,0.00054794,120]
[358363990,1744996251356,-500.0,0.00054794,120]
[358363991,1744996251366,-500.0,0.00054794,120]
[358363992,1744996251377,-500.0,0.00054794,120]
[358363993,1744996251387,-1071.84,0.00054794,120]
[358363994,1744996251397,-151.0,0.00054794,120]
[358363995,1744996251407,-500.0,0.00054794,120]
[358363996,1744996251416,-500.0,0.00054794,120]
[358363997,1744996251426,-500.0,0.00054794,120]
[358363998,1744996251435,-500.0,0.00054794,120]
[358363999,1744996251444,-517.29616572,0.00054794,120]
[358364000,1744996251454,-500.0,0.00054794,120]
[358364001,1744996251463,-500.0,0.00054794,120]
[358364002,1744996251473,-549.05800216,0.00054794,120]
[358364003,1744996251482,-500.0,0.00054794,120]
[358364004,1744996251492,-569.15804025,0.00054794,120]
[358364005,1744996251501,-521.61087902,0.00054794,120]
[358364006,1744996251511,-500.0,0.00054794,120]
[358364007,1744996251520,-510.87811441,0.00054794,120]
[358364008,1744996251529,-500.0,0.00054794,120]
[358364009,1744996251539,-507.6,0.00054794,120]
[358364010,1744996251549,-500.0,0.00054794,120]
[358364011,1744996251559,-528.51313562,0.00054794,120]
[358364012,1744996251568,-500.0,0.00054794,120]
[358364013,1744996251578,-500.0,0.00054794,120]
[358364014,1744996251588,-587.01108165,0.00054794,120]
[358364015,1744996251598,-500.0,0.00054794,120]
[358364016,1744996251607,-516.74122284,0.00054794,120]
[358364017,1744996251617,-500.0,0.00054794,120]
[358364018,1744996251626,-500.0,0.00054794,2]
[358364019,1744996251636,-500.0,0.00054794,120]
[358364020,1744996251645,-500.0,0.00054794,120]
[358364021,1744996251654,-500.0,0.00054794,120]
[358364022,1744996251664,-965.19,0.00054794,120]
[358364023,1744996251673,-500.0,0.00054794,120]
[358364024,1744996251683,-500.0,0.00054794,120]
[358364025,1744996251692,-500.0,0.00054794,120]
[358364026,1744996251702,-556.31724279,0.00054794,120]
[358364027,1744996251712,-500.0,0.00054794,120]
[358364028,1744996251721,-511.95752088,0.00054794,120]
[358364029,1744996251729,-500.0,0.00054794,120]
[358364030,1744996251739,-500.0,0.00054794,120]
[358364031,1744996251748,-500.0,0.00054794,120]
[358364032,1744996251758,-4382.5,0.00054794,120]
[358364033,1744996251767,-500.0,0.00054794,120]
[358364034,1744996251776,-500.0,0.00054794,120]
[358364035,1744996251785,-500.0,0.00054794,120]
[358364036,1744996251794,-500.0,0.00054794,120]
[358364037,1744996251804,-500.0,0.00054794,120]
[358364038,1744996251814,-500.0,0.00054794,120]
[358364039,1744996251824,-500.0,0.00054794,120]
[358364040,1744996251833,-292.26363773,0.00054794,120]
[358364041,1744996251843,-500.0,0.00054794,120]
[358364042,1744996251852,-500.0,0.00054794,120]
[358364043,1744996251861,-500.0,0.00054794,120]
[358364044,1744996251871,-500.0,0.00054794,120]
[358364045,1744996251881,-1010.33,0.00054794,120]
[358364046,1744996251891,-500.0,0.00054794,120]
[358364047,1744996251901,-505.22321867,0.00054794,120]
[358364048,1744996251910,-1021.425147,0.00054794,120]
[358364049,1744996251920,-1021.425147,0.00054794,120]
[358364050,1744996251929,-521.94699722,0.00054794,120]
[358364051,1744996251939,-500.0,0.00054794,120]
[358364052,1744996251949,-381.24332724,0.00054794,120]
[358364053,1744996251958,-500.0,0.00054794,120]
[358364054,1744996251967,-500.0,0.00054794,120]
[358364055,1744996251976,-519.285105,0.00054794,120]
[358364056,1744996251986,-506.33583399,0.00054794,120]
[358364057,1744996251995,-500.0,0.00054794,120]
[358364058,1744996252005,-500.0,0.00054794,120]
[358364059,1744996252014,-1021.425147,0.00054794,120]
[358364060,1744996252025,-500.0,0.00054794,118]
[358364061,1744996252035,-1021.425147,0.00054794,120]
[358364062,1744996252044,-500.0,0.00054794,120]
[358364063,1744996252054,-243.41530583,0.00054794,120]
[358364064,1744996252064,-1000.0,0.00054794,120]
[358364065,1744996252074,-458.0984484,0.00054794,120]